[Event "12th WLC Weekend 2022"]
[Site "Eindhoven"]
[Date "2022.05.15"]
[Round "5.6"]
[White "Smit, Maarten"]
[Black "Baselmans, Luuk"]
[Result "0-1"]
[ECO "A11"]
[WhiteElo "2056"]
[BlackElo "2233"]
[Annotator "TA"]
[PlyCount "106"]
[EventDate "2022.05.13"]
[EventType "swiss"]
[EventCountry "NED"]
[SourceTitle "playchess.com"]
[Source "ChessBase"]
[SourceQuality "1"]
[TimeControl "5400+30"]

{[%evp 12,106,-22,-39,-13,-17,-29,-29,-7,-1,-11,-3,-9,-12,0,-17,0,-1,0,0,0,-20,-9,-16,-13,-27,-26,-140,-141,-146,-131,-134,-131,-134,-129,-131,-129,-136,-122,-134,-134,-120,-125,-151,-112,-259,-270,-302,-290,-310,-287,-302,-284,-332,-327,-382,-373,-391,-388,-458,-458,-621,-518,-742,-715,-792,-767,-785,-683,-676,-668,-889,-908,-793,-646,-796,-592,-575,-524,-2157,-1802,-1951,-2013,-1936,-2019,-1693,-1765,-5738,-4133,-29977,-29978,-29978,-29979,-29991,-29992,-29993,-29994]} 1. c4 {[%emt 0:00:02]} e5 {[%emt 0:00:41]} 2. g3 {[%emt 0:00:07]} Nf6 {[%emt 0:00:30]} 3. Bg2 {[%emt 0:00:06]} c6 {[%emt 0:00:50]} 4. d3 {[%emt 0:01:55]} d5 {[%emt 0:01:10]} 5. cxd5 {[%emt 0:00:21]} cxd5 {[%emt 0:00:07]} 6. Nf3 {[%emt 0:01:14]} Nc6 {[%emt 0:03:45]} 7. O-O {[%emt 0:01:22]} h6 {[%emt 0:02:05] A11: English Opening: 1...c6.} 8. a3 {[%emt 0:06:18]} Bd6 {[%emt 0:03:38]} 9. b4 {[%emt 0:03:52][%cal Oe2e4]} a6 {[%emt 0:00:34] Black has an edge.} 10. Bb2 {[%emt 0:01:16]} O-O {[%emt 0:00:46]} 11. Nc3 {[%emt 0:08:32]} Re8 {[%emt 0:03:23] [#]} 12. Rc1 $146 {[%emt 0:02:14]} ({Predecessor:} 12. Nd2 Bf8 13. Rc1 a5 14. b5 Nd4 15. e3 Nf5 16. e4 dxe4 17. dxe4 Nd4 18. Nb3 {0-1 (43) Matthaei,A (2270)-Khenkin,I (2575) Dortmund 1993}) 12... Bg4 {[%emt 0:04:14]} 13. Re1 {[%emt 0:10:22]} Qe7 {[%emt 0:07:53]} 14. Nd2 {[%emt 0:02:17]} Qe6 {[%emt 0:03:58]} 15. Qb3 {[%emt 0:10:00][%cal Rc3d5]} Ne7 {[%emt 0:10:50]} 16. e4 {[%emt 0:16:38][%cal Re4d5]} d4 {[%emt 0:06:06]} 17. Qxe6 {[%emt 0:02:06]} Bxe6 {[%emt 0:01:09]} 18. Na4 {[%emt 0:00:19]} (18. Ne2 {seems wilder.} a5 19. f4 axb4 20. fxe5 Bxe5 21. axb4 Ra2 22. Nf3) 18... Nd7 {[%emt 0:01:39][%cal Bf6d7,Bd7c5,Bc5a4][%mdl 32] Prevents Nb6.} 19. Nc5 {[%emt 0:03:27]} (19. Nc4 $11 Bc7 20. Nc5) 19... Bxc5 $17 {[%emt 0:01:39]} 20. bxc5 {[%emt 0:00:35]} Rec8 {[%emt 0:00:42]} 21. f4 {[%emt 0:04:24]} Nxc5 {[%emt 0:02:01]} 22. Bf1 {[%emt 0:03:08]} Na4 {[%emt 0:01:41]} 23. Ba1 {[%emt 0:02:43] [#]} f6 $1 {[%emt 0:01:00] Black is more active.} 24. Nf3 {[%emt 0:00:41]} Nc6 {[%emt 0:03:25]} 25. Be2 {[%emt 0:01:25]} b6 {[%emt 0:01:12]} 26. Kg2 {[%emt 0:08:22]} Nc5 {[%emt 0:01:08] Pair of Knights!} 27. h3 {[%emt 0:00:13]} Kf8 {[%emt 0:01:23]} 28. g4 {[%emt 0:00:08] Now White is beyond hope.} (28. Bb2 $17) 28... Nb3 $19 {[%emt 0:01:02]} 29. Rb1 {[%emt 0:00:46]} Nxa1 {[%emt 0:00:40]} ({Wrong is} 29... exf4 $2 30. Bd1 Nxa1 31. Rxa1 $19) 30. Rxa1 {[%emt 0:00:18]} exf4 {[%emt 0:00:28]} 31. Rec1 {[%emt 0:02:54]} Ke7 {[%emt 0:01:39]} 32. Rc2 {[%emt 0:00:16]} Kd6 {[%emt 0:01:18]} 33. Rac1 {[%emt 0:00:12]} b5 {[%emt 0:01:28]} 34. Kf2 {[%emt 0:00:26]} g5 {[%emt 0:00:52]} 35. Rc5 {[%emt 0:00:23]} Rab8 {[%emt 0:00:44]} 36. Ke1 {[%emt 0:01:37]} a5 {[%emt 0:00:33][%cal Ba6a5,Ba5b4,Bb4b3][%mdl 32]} 37. Kd2 {[%emt 0:00:06]} b4 {[%emt 0:00:30]} 38. axb4 {[%emt 0:00:34]} axb4 {[%emt 0:00:19]} 39. R5c2 {[%emt 0:01:34]} Ra8 {[%emt 0:01:40]} 40. Bd1 {[%emt 0:00:47]} b3 {[%emt 0:01:41]} 41. Rb2 {[%emt 0:00:24]} Ra2 {[%emt 0:00:48]} 42. Rcb1 {[%emt 0:00:29]} Kc5 {[%emt 0:01:30] aiming for ...Rca8.} 43. Kc1 {[%emt 0:00:17]} Rxb2 {[%emt 0:08:17]} 44. Kxb2 {[%emt 0:01:04]} Kb4 {[%emt 0:01:01]} 45. Rc1 {[%emt 0:00:24]} Ne5 {[%emt 0:00:23]} 46. Rxc8 {[%emt 0:00:37]} Nxd3+ {[%emt 0:00:18]} 47. Kb1 {[%emt 0:00:08]} Bxc8 {[%emt 0:00:05]} 48. Nxd4 {[%emt 0:00:14][%mdl 4096] Endgame KBN-KBN} Kc3 {[%emt 0:00:47]} 49. Nxb3 {[%emt 0:00:28]} f3 {[%emt 0:00:09][%cal Bf4f3,Bf3f2][%mdl 32]} 50. Nc1 {[%emt 0:01:19]} f2 {[%emt 0:00:55] Black mates.} 51. Be2 {[%emt 0:00:04]} Ba6 {[%emt 0:00:32]} 52. Bf1 {[%emt 0:01:10]} Nxc1 {[%emt 0:00:12]} 53. Bxa6 {[%emt 0:00:05]} Nd3 {[%emt 0:00:06] Weighted Error Value: White=0.38/Black=0.12 (very precise)} 0-1

[Event "12th WLC Weekend 2022"]
[Site "Eindhoven"]
[Date "2022.05.15"]
[Round "5.7"]
[White "van der Valk, Niklas"]
[Black "Faber, Hugo"]
[Result "1-0"]
[ECO "E06"]
[WhiteElo "2200"]
[BlackElo "2076"]
[Annotator "TA"]
[PlyCount "69"]
[EventDate "2022.05.13"]
[EventType "swiss"]
[EventCountry "NED"]
[SourceTitle "playchess.com"]
[Source "ChessBase"]
[SourceQuality "1"]
[TimeControl "5400+30"]

{[%evp 12,69,16,5,7,-7,11,8,25,-4,11,15,62,0,13,0,0,-6,0,-31,-23,-67,-68,-62,-70,-70,-66,-84,-85,-144,-85,-138,-57,-70,0,-17,0,0,81,85,237,229,312,277,285,277,284,276,452,241,224,229,370,275,734,718,646,594,481,384]} 1. c4 {[%emt 0:00:04]} e6 {[%emt 0:00:49]} 2. g3 {[%emt 0:00:08]} d5 {[%emt 0:00:43]} 3. Bg2 {[%emt 0:00:07]} Nf6 {[%emt 0:00:45]} 4. Nf3 {[%emt 0:00:09]} Be7 {[%emt 0:00:41]} 5. d4 {[%emt 0:00:21]} O-O {[%emt 0:01:30]} 6. Nc3 {[%emt 0:01:04]} Nbd7 {[%emt 0:03:02]} 7. Qd3 {[%emt 0:01:07]} b6 {[%emt 0:06:53] now scores much better than the old 7...c6. E06: Closed Catalan: Early deviations.} 8. O-O {[%emt 0:00:55]} Bb7 {[%emt 0:02:02]} 9. Bf4 {[%emt 0:05:45] [#]} a6 $146 {[%emt 0:06:35] The position is equal.} ({Predecessor:} 9... c5 10. Rad1 Ba6 11. b3 dxc4 12. bxc4 cxd4 13. Nxd4 Nc5 14. Qc2 Rc8 15. Nc6 Qe8 16. Nxe7+ Qxe7 {1-0 (58) Kamalidenova,M (1405)-Altantuya,B Juiz de Fora 2014}) 10. Rac1 {[%emt 0:09:50]} c5 {[%emt 0:04:15]} 11. cxd5 {[%emt 0:00:47]} exd5 {[%emt 0:08:44]} (11... Nxd5 12. Nxd5 exd5) (11... Nxd5 $11 12. Nxd5 exd5) 12. Rfd1 {[%emt 0:06:21] 0x0.001df4e95eb6dp-1022s more active pieces. The black rooks are badly placed.} (12. dxc5 $14 Nxc5 13. Qb1) 12... c4 $11 {[%emt 0:02:17]} 13. Qc2 {[%emt 0:01:49]} b5 {[%emt 0:01:21]} 14. Ne5 {[%emt 0:01:43]} Nb6 {[%emt 0:08:11]} 15. e4 {[%emt 0:09:11]} dxe4 {[%emt 0:03:48]} (15... Nxe4 {keeps more tension.} 16. Nxe4 dxe4 17. d5 f5) 16. Nxe4 {[%emt 0:01:38]} Nxe4 {[%emt 0:00:43]} 17. Bxe4 {[%emt 0:00:08]} Bxe4 {[%emt 0:00:15]} 18. Qxe4 {[%emt 0:00:04] Strongly threatening Nc6.} Qd5 {[%emt 0:00:52]} 19. Qe2 {[%emt 0:09:22][%cal Oe5c4]} Rfe8 {[%emt 0:03:24]} 20. Qd2 {[%emt 0:14:44]} (20. Ng4 $142) 20... Bf8 {[%emt 0:08:34]} (20... g5 $142 21. Qa5 (21. Bxg5 $2 f6 $17) 21... Bd8) 21. Ng4 {[%emt 0:03:30]} (21. b3 $142) 21... Qd8 {[%emt 0:06:40]} (21... Qf3 $1 $17 22. Ne5 Qb7) 22. d5 $15 {[%emt 0:04:57][%cal Bd4d5,Bd5d6][%mdl 32]} f6 {[%emt 0:04:12]} (22... h5 $15 23. Ne5 Rc8) 23. h4 {[%emt 0:09:38]} (23. d6 $5 {[%cal Rf4e3]}) 23... Qd7 {[%emt 0:04:34]} 24. Ne3 {[%emt 0:04:29]} Re4 {[%emt 0:06:48] [#]} (24... Rac8 $11 {remains equal.}) 25. d6 $1 $16 {[%emt 0:03:04] Hoping for Nd5.} Rae8 $2 {[%emt 0:00:31] Loses the game.} (25... Qc6 $16) 26. Nd5 $18 {[%emt 0:01:24]} Nxd5 {[%emt 0:00:54]} 27. Qxd5+ {[%emt 0:00:05]} Kh8 {[%emt 0:00:21] [#]} 28. b3 $1 {[%emt 0:03:06]} Rxf4 {[%emt 0:05:34]} 29. gxf4 {[%emt 0:00:16]} Bxd6 $2 {[%emt 0:00:08]} (29... Re6 {might work better.} 30. bxc4 Rxd6) 30. Re1 {[%emt 0:04:31]} ({Stronger than} 30. Qxd6 Qg4+ 31. Kh1 Qh3+ 32. Kg1 Qg4+ 33. Kh2 Qxh4+ 34. Kg2 Qg4+ 35. Kh2 Qh4+ 36. Kg2 Qg4+ 37. Kh2 Qh4+ $11) (30. f5 $142) 30... Qg4+ {[%emt 0:03:17]} 31. Qg2 {[%emt 0:00:22]} Rxe1+ {[%emt 0:00:38]} (31... Qxg2+ $142 32. Kxg2 Rc8 33. bxc4 Bxf4) 32. Rxe1 {[%emt 0:00:02] White wants to mate with Re8+.} h5 $2 {[%emt 0:00:25]} (32... Qxg2+ 33. Kxg2 Kg8) 33. Qxg4 {[%emt 0:01:23] White is clearly winning.} hxg4 {[%emt 0:00:07]} 34. bxc4 {[%emt 0:00:18]} bxc4 {[%emt 0:00:04]} 35. Rc1 {[%emt 0:00:21] Weighted Error Value: White=0.28 (precise) /Black=0.45} 1-0

[Event "12th WLC Weekend 2022"]
[Site "Eindhoven"]
[Date "2022.05.15"]
[Round "5.8"]
[White "Hubers, Daan"]
[Black "Zepeda, Lorena"]
[Result "1-0"]
[ECO "A00"]
[WhiteElo "1818"]
[BlackElo "2130"]
[Annotator "TA"]
[PlyCount "99"]
[EventDate "2022.05.13"]
[EventType "swiss"]
[EventCountry "NED"]
[SourceTitle "playchess.com"]
[Source "ChessBase"]
[SourceQuality "1"]
[TimeControl "5400+30"]

{[%evp 9,99,0,-6,-7,-14,-55,-57,-81,-58,-48,-67,-157,0,0,5,8,65,20,78,-15,117,129,176,100,171,171,187,167,322,214,722,715,732,742,730,736,720,689,816,811,977,975,946,918,1055,1083,1100,1100,1075,1065,1205,1112,1198,997,1214,880,858,833,782,847,835,830,804,781,935,967,1810,1818,1751,1737,2118,1893,6514,5953,5631,5489,2521,1929,1984,2972,3107,2760,6219,5946,29985,29985,29981,29982,29988,29989,29989,29990]} 1. b4 {[%emt 0:00:35]} d5 {[%emt 0:00:18]} 2. Bb2 {[%emt 0:00:03]} Qd6 {[%emt 0:00:18]} 3. a3 {[%emt 0:01:09]} e5 {[%emt 0:00:23]} 4. d3 {[%emt 0:04:19]} Nf6 {[%emt 0:01:01]} 5. Nf3 {[%emt 0:01:51]} Nbd7 {[%emt 0:00:48] [#]} 6. Nbd2 $146 {[%emt 0:00:35] A00: Irregular Openings.} ({Predecessor:} 6. e3 g6 7. Be2 Bg7 8. O-O O-O 9. h3 b6 10. c4 c6 11. Nbd2 Bb7 12. Nb3 {1-0 (59) Szymanski,L (1798)-Gajewski,W (1491) Poznan 2012}) 6... a5 {[%emt 0:20:25]} 7. b5 {[%emt 0:04:51]} e4 {[%emt 0:08:39]} 8. Nd4 {[%emt 0:07:29] Black is slightly better.} e3 $1 {[%emt 0:06:17]} 9. fxe3 {[%emt 0:00:26]} Ng4 {[%emt 0:03:23][%csl LRe3,LRh2]} 10. N2f3 {[%emt 0:13:21] [#]} (10. Qc1 $15) 10... Nxe3 $2 {[%emt 0:06:34]} (10... g6 $1 $17 {Strongly threatening ...Bh6.} 11. Nf5 gxf5 12. Bxh8 Nxe3) 11. Qd2 $11 {[%emt 0:00:33]} Nxf1 {[%emt 0:11:46]} 12. Rxf1 {[%emt 0:00:35] aiming for Nf5.} Nf6 {[%emt 0:01:02]} ({Black should play} 12... Nc5 $11) 13. a4 {[%emt 0:07:02]} Be7 {[%emt 0:16:29]} (13... Qb6 $11 {keeps the balance.}) 14. Nh4 {[%emt 0:12:15]} ({Better is} 14. Ba3 $16 Qd8 15. Qe3) 14... Qxh2 {[%emt 0:10:15] [#]} (14... g6 $1 $11 {remains equal.}) 15. Nhf5 $1 $36 {[%emt 0:01:02][%mdl 2048] White has strong initiative. Active counter play! White leaves nothing to chance now.} Bb4 {[%emt 0:05:15]} (15... Bxf5 $16 16. Nxf5 Bb4 17. Nxg7+ Kd7) 16. c3 {[%emt 0:02:27]} (16. Nxg7+ $18 Kd8 17. Nc6+ (17. c3 Be7 $16) 17... bxc6 18. Bxf6+ Kd7 19. c3) 16... Bd6 {[%emt 0:02:48]} (16... Bxf5 $16 {was worth a try.} 17. Nxf5 Bf8) 17. Nxg7+ $18 {[%emt 0:10:06] Pair of Knights!} Kf8 {[%emt 0:00:30]} 18. Ngf5 {[%emt 0:03:27] Prevents Qg3+.} Ng4 $2 {[%emt 0:01:13]} (18... Bxf5 19. Nxf5 Ng4) 19. O-O-O {[%emt 0:06:54][%cal Ob5b6] And now b6! would win.} Bc5 $2 {[%emt 0:01:02]} (19... Rg8 20. Rh1 Qf4) 20. Qg5 {[%emt 0:01:21][%cal Rg5d8]} Bxf5 {[%emt 0:00:52]} 21. Qxf5 {[%emt 0:00:37][%csl Gf1][%cal Rf5f7]} Qh6+ {[%emt 0:00:44]} 22. Kb1 {[%emt 0:00:21][%csl Gf1][%cal Rf5f7]} Qg6 {[%emt 0:00:44]} 23. Ne6+ {[%emt 0:01:21]} Kg8 {[%emt 0:00:28]} 24. Nxc5 {[%emt 0:02:04]} Ne3 {[%emt 0:00:18]} 25. Qe5 {[%emt 0:01:54]} Nxd1 {[%emt 0:00:29]} 26. Rxd1 {[%emt 0:00:32]} f6 {[%emt 0:00:49]} 27. Qxd5+ {[%emt 0:00:45]} Qf7 {[%emt 0:00:12]} 28. Qf5 {[%emt 0:01:44]} Qg6 {[%emt 0:00:42]} 29. Qf3 {[%emt 0:01:49]} Re8 {[%emt 0:00:34]} 30. c4 {[%emt 0:00:44] Black must now prevent Nd7.} h5 {[%emt 0:00:33]} 31. Rf1 {[%emt 0:01:51]} Rh6 {[%emt 0:00:33]} 32. Nxb7 {[%emt 0:02:12]} Qg4 {[%emt 0:00:32]} 33. Qxg4+ {[%emt 0:03:30]} hxg4 {[%emt 0:00:07]} 34. e4 {[%emt 0:00:38]} Rh2 {[%emt 0:00:24]} 35. Rg1 {[%emt 0:01:43]} Kf7 {[%emt 0:00:36]} 36. Bc1 {[%emt 0:00:41]} Reh8 {[%emt 0:00:49]} 37. Bf4 {[%emt 0:01:16]} Rh1 {[%emt 0:00:19]} 38. Rxh1 {[%emt 0:00:05]} Rxh1+ {[%emt 0:00:03]} 39. Kb2 {[%emt 0:00:45]} Rd1 {[%emt 0:01:05]} 40. Kc3 {[%emt 0:00:11]} Ra1 {[%emt 0:00:20]} 41. Nxa5 {[%emt 0:00:45]} Rxa4 {[%emt 0:00:13]} 42. Nc6 {[%emt 0:00:17]} Ke6 {[%emt 0:00:26]} 43. Bxc7 {[%emt 0:00:29]} Kd7 {[%emt 0:00:10]} 44. Bf4 {[%emt 0:00:21]} Ra3+ {[%emt 0:00:22]} 45. Kd4 {[%emt 0:00:12] Threatens to win with g3.} Rb3 {[%emt 0:00:15]} 46. e5 {[%emt 0:00:34][%cal Be4e5,Be5e6][%mdl 32]} f5 {[%emt 0:00:14]} 47. g3 {[%emt 0:00:21] White mates.} Ke6 {[%emt 0:01:07]} 48. Kc5 {[%emt 0:00:22]} Rxd3 {[%emt 0:00:35]} 49. Nd4+ {[%emt 0:00:05]} Kd7 {[%emt 0:00:25]} 50. e6+ {[%emt 0:00:23] Weighted Error Value: White=0.39/Black=0.51} 1-0

[Event "12th WLC Weekend 2022"]
[Site "Eindhoven"]
[Date "2022.05.15"]
[Round "5.9"]
[White "Van Doren, Bas"]
[Black "Straat, Evert-Jan"]
[Result "1/2-1/2"]
[ECO "C42"]
[WhiteElo "2102"]
[BlackElo "2034"]
[Annotator "TA"]
[PlyCount "159"]
[EventDate "2022.05.13"]
[EventType "swiss"]
[EventCountry "NED"]
[SourceTitle "playchess.com"]
[Source "ChessBase"]
[SourceQuality "1"]
[TimeControl "5400+30"]

{[%evp 10,159,39,41,33,1,3,-5,16,13,9,4,20,20,39,9,20,15,21,0,0,0,0,-35,0,0,7,22,16,12,25,0,0,0,0,4,4,0,0,-12,-16,-10,0,0,12,6,0,0,6,10,4,3,11,0,0,0,4,4,5,9,16,0,0,5,4,11,30,18,18,18,19,35,20,20,25,0,66,0,77,86,107,106,107,107,93,91,88,83,83,41,88,33,134,93,115,14,237,34,34,21,21,21,21,21,21,21,21,21,21,0,0,0,0,0,0,0,0,0,0,0,0,0,0,0,0,0,0,0,0,0,0,0,0,0,0,0,0,0,0,0,0,0,0,0,0,0,0,0,0,0,0,0]} 1. e4 {[%emt 0:04:28]} e5 {[%emt 0:04:23]} 2. Nf3 {[%emt 0:00:06]} Nf6 {[%emt 0:00:13]} 3. Nxe5 {[%emt 0:00:06]} d6 {[%emt 0:00:10]} 4. Nf3 {[%emt 0:00:06]} Nxe4 {[%emt 0:00:10]} 5. Nc3 {[%emt 0:00:06]} Nf6 {[%emt 0:01:27]} 6. d4 {[%emt 0:00:26]} d5 {[%emt 0:00:35] C42: Petroff Defence: 3 Nxe5 and unusual White 3rd moves.} 7. Bf4 {[%emt 0:01:59]} Bd6 {[%emt 0:08:25]} 8. Ne5 {[%emt 0:04:00]} c6 {[%emt 0:03:13]} (8... O-O) 9. Bd3 {[%emt 0:00:58] [#]} Be6 $146 {[%emt 0:05:22]} ({Predecessor:} 9... O-O 10. O-O Bc7 11. Re1 Nbd7 12. Qf3 Re8 13. h3 Nf8 14. Bg5 N8d7 15. Ng4 Rxe1+ 16. Rxe1 {1-0 (26) Varga,R (1941)-Radics,N (1485) Budapest 2015}) 10. O-O {[%emt 0:04:31]} O-O {[%emt 0:00:53]} (10... Qb6 $2 11. Nxf7 $1 {[%mdl 512]} Kxf7 12. Bxd6 $18) 11. Bg3 {[%emt 0:03:07]} c5 {[%emt 0:06:53]} 12. dxc5 {[%emt 0:00:53]} Bxc5 {[%emt 0:00:16]} 13. h3 {[%emt 0:01:46]} Nc6 {[%emt 0:02:29]} 14. Nf3 {[%emt 0:01:30]} h6 {[%emt 0:21:19]} 15. Qd2 {[%emt 0:08:52]} Nh5 {[%emt 0:12:42]} 16. Ne2 {[%emt 0:04:06]} Qc8 {[%emt 0:09:12][%cal Oe6h3]} 17. Kh2 {[%emt 0:01:57]} Nb4 {[%emt 0:03:55]} 18. c3 {[%emt 0:04:26]} Nxd3 {[%emt 0:00:27]} 19. Qxd3 {[%emt 0:00:03]} Nxg3 {[%emt 0:00:35]} 20. Nxg3 {[%emt 0:01:05]} Qc7 {[%emt 0:01:11]} 21. Rad1 {[%emt 0:02:54]} Rad8 {[%emt 0:02:07]} 22. Nd4 {[%emt 0:02:31]} Rfe8 {[%emt 0:01:13]} 23. Kh1 {[%emt 0:06:11]} Qf4 {[%emt 0:03:09]} 24. Qf3 {[%emt 0:04:11]} Qxf3 {[%emt 0:04:26]} 25. Nxf3 {[%emt 0:00:06]} a6 {[%emt 0:00:17]} 26. Nd4 {[%emt 0:00:47]} f6 {[%emt 0:01:23]} 27. Kg1 {[%emt 0:03:51]} Bf7 {[%emt 0:01:04]} 28. Rd2 {[%emt 0:00:35]} Bd6 {[%emt 0:01:21]} 29. Ngf5 {[%emt 0:03:54]} Bf4 {[%emt 0:01:49]} 30. Rd3 {[%emt 0:04:04]} h5 {[%emt 0:01:28]} 31. g3 {[%emt 0:00:42]} Bc7 {[%emt 0:01:49]} 32. Rfd1 {[%emt 0:04:32]} Bg6 {[%emt 0:00:37]} 33. Re3 {[%emt 0:01:12]} Rxe3 {[%emt 0:00:49]} 34. Nxe3 {[%emt 0:00:09] Pair of Knights!} Bb6 {[%emt 0:00:20]} 35. Ne6 {[%emt 0:05:10][%csl LRd5,LRd8]} Re8 {[%emt 0:00:07]} 36. Nf4 {[%emt 0:03:46]} Bxe3 {[%emt 0:00:09]} 37. Nxg6 $11 {[%emt 0:02:37][%mdl 4096] Endgame KRB-KRN} Kh7 {[%emt 0:01:25] [#]} 38. Nf8+ {[%emt 0:06:50]} Kg8 {[%emt 0:01:03]} 39. fxe3 {[%emt 0:02:41]} Kxf8 {[%emt 0:00:13]} 40. Rxd5 {[%emt 0:00:32] Threatens to win with Kf2. KR-KR} h4 $1 {[%emt 0:01:07]} 41. Rd3 {[%emt 0:01:36]} hxg3 {[%emt 0:00:14]} 42. Kg2 {[%emt 0:00:04]} Re7 {[%emt 0:00:42]} (42... b5 $11) 43. h4 {[%emt 0:01:18]} (43. Kxg3 $14 Re5 44. c4) 43... Kf7 {[%emt 0:00:24]} (43... Re4 $11) 44. Kxg3 $16 {[%emt 0:00:07]} g6 {[%emt 0:00:12]} 45. Kf4 {[%emt 0:00:28]} Ke6 {[%emt 0:00:56]} 46. Rd4 {[%emt 0:01:12]} Rh7 {[%emt 0:00:04]} 47. Kg4 {[%emt 0:00:39]} Rh5 {[%emt 0:00:46]} 48. Rb4 {[%emt 0:01:43]} b5 {[%emt 0:00:36]} 49. a4 {[%emt 0:00:58]} Rc5 {[%emt 0:00:32]} (49... bxa4 $1 $14 50. Rxa4 a5) 50. Rd4 {[%emt 0:01:51]} (50. axb5 $16 axb5 51. Re4+ Kf7 52. Kf3) 50... Ke5 {[%emt 0:00:40]} (50... bxa4 $14 51. Rxa4 a5) 51. Kf3 {[%emt 0:00:57]} Ke6 {[%emt 0:00:28]} 52. e4 {[%emt 0:00:35]} (52. Re4+ $16 Kf7 53. Rb4) 52... Ke5 $2 {[%emt 0:00:33] [#]} (52... bxa4 $11 {and Black has nothing to worry.} 53. Rxa4 a5) 53. axb5 $2 {[%emt 0:00:26]} ({Only move:} 53. a5 $1 $18) 53... axb5 $14 {[%emt 0:00:26]} 54. Rd8 {[%emt 0:00:08]} b4 $1 {[%emt 0:00:40] The position is equal.} 55. cxb4 {[%emt 0:00:52]} Rc2 {[%emt 0:00:03]} 56. Rd5+ {[%emt 0:00:47]} Ke6 {[%emt 0:00:03]} 57. h5 {[%emt 0:00:10]} gxh5 {[%emt 0:00:08]} 58. Rxh5 {[%emt 0:00:17]} Rxb2 {[%emt 0:00:08]} 59. Rb5 {[%emt 0:00:14]} Rb1 {[%emt 0:00:29]} 60. Ke2 {[%emt 0:02:00]} Rb3 {[%emt 0:00:24]} 61. Kd2 {[%emt 0:00:28]} Rb1 {[%emt 0:00:33]} 62. Kd3 {[%emt 0:00:58]} Rd1+ {[%emt 0:00:18]} 63. Kc4 {[%emt 0:00:25]} Re1 {[%emt 0:00:33]} 64. Kd4 {[%emt 0:00:07] Black must now prevent Rd5.} Rd1+ {[%emt 0:00:05]} 65. Kc5 {[%emt 0:00:43]} Rc1+ {[%emt 0:01:03]} 66. Kb6 {[%emt 0:01:55] Hoping for Rc5.} Re1 {[%emt 0:00:06]} 67. Kc7 {[%emt 0:00:37] Strongly threatening Rc5.} Rxe4 {[%emt 0:00:16]} 68. Rb6+ {[%emt 0:00:05]} Ke5 {[%emt 0:01:24]} 69. b5 {[%emt 0:00:04]} Rb4 {[%emt 0:00:23]} 70. Rb8 {[%emt 0:00:33]} f5 {[%emt 0:00:13][%cal Bf6f5,Bf5f4,Bf4f3,Bf3f2][%mdl 32]} 71. Re8+ {[%emt 0:00:59]} Kd4 {[%emt 0:00:15]} 72. b6 {[%emt 0:00:15]} f4 {[%emt 0:00:23]} 73. b7 {[%emt 0:00:38]} f3 {[%emt 0:00:21]} 74. b8=Q {[%emt 0:00:55]} Rxb8 {[%emt 0:00:06]} 75. Rxb8 $11 {[%emt 0:00:26] KR-KP} f2 {[%emt 0:00:21]} 76. Rb1 {[%emt 0:00:16]} Ke3 {[%emt 0:00:19]} 77. Kd6 {[%emt 0:00:07]} Ke2 {[%emt 0:00:10]} 78. Rb2+ {[%emt 0:00:07]} Ke1 {[%emt 0:00:11]} 79. Rxf2 {[%emt 0:00:05]} Kxf2 {[%emt 0:00:06]} 80. Ke5 {[%emt 0:00:34] Weighted Error Value: White=0.19 (very precise) /Black=0.21 (precise)} 1/2-1/2